fUSD/lending_fUSD_20241215
["ID","MTS","AMOUNT","RATE_DAILY","PERIOD"]
[345433142,1734255033246,-500.0,0.00019178,2]
[345433143,1734255033256,-500.0,0.00019178,2]
[345433144,1734255033266,-564.22,0.00019178,2]
[345433145,1734255033276,-500.0,0.00019178,2]
[345433146,1734255033286,-500.0,0.00019178,2]
[345433147,1734255033295,-519.51,0.00019178,2]
[345433148,1734255033304,-500.0,0.00019178,2]
[345433149,1734255033314,-500.0,0.00019178,2]
[345433150,1734255033323,-500.0,0.00019178,2]
[345433151,1734255033332,-1000.0,0.00019178,2]
[345433152,1734255033342,-184.0,0.00019178,2]
[345433153,1734255033351,-4000.0,0.00019178,2]
[345433154,1734255033361,-987.75,0.00019178,2]
[345433155,1734255033371,-154.7,0.00019178,2]
[345433156,1734255033380,-400.85,0.00019178,2]
[345433157,1734255033390,-435.39,0.00019178,2]
[345433158,1734255033399,-974.74,0.00019178,2]
[345433159,1734255033408,-291.03,0.00019178,2]
[345433160,1734255033417,-300.4,0.00019178,2]
[345433161,1734255033427,-472.21731629,0.00019233,2]
[345433162,1734255033436,-2002.86183931,0.0001928,2]
[345433163,1734255033446,-472.21731623,0.00019307,2]
[345433164,1734255033455,-167.92330577,0.00019332,2]
[345433165,1734255033465,-55061.9111,0.00019333,2]
[345433166,1734255033474,-394.8885,0.00019333,2]
[345433167,1734255033483,-1000.0,0.00019335,2]
[345433168,1734255033492,-472.21731623,0.00019381,2]
[345433169,1734255033502,-500.0,0.00019431,3]
[345433170,1734255033511,-500.0,0.00019431,3]
[345433171,1734255033522,-500.0,0.00019431,3]
[345433172,1734255033531,-500.0,0.00019431,3]
[345433173,1734255033541,-500.0,0.00019431,3]
[345433174,1734255033550,-500.0,0.00019432,3]
[345433175,1734255033559,-500.0,0.00019432,3]
[345433176,1734255033569,-500.0,0.00019432,3]
[345433177,1734255033578,-500.0,0.00019432,3]
[345433178,1734255033587,-500.0,0.00019432,3]
[345433179,1734255033596,-500.0,0.00019432,3]
[345433180,1734255033606,-500.0,0.00019432,3]
[345433181,1734255033615,-500.0,0.00019432,3]
[345433182,1734255033625,-549.54,0.00019432,3]
[345433183,1734255033634,-500.0,0.00019432,3]
[345433184,1734255033644,-620.90032173,0.00019432,3]
[345433185,1734255033653,-500.0,0.00019432,3]
[345433186,1734255033663,-500.0,0.00019432,3]
[345433187,1734255033673,-500.0,0.00019432,3]
[345433188,1734255033682,-500.0,0.00019432,3]
[345433189,1734255033692,-500.0,0.00019432,3]
[345433190,1734255033702,-500.0,0.00019432,3]
[345433191,1734255033711,-500.0,0.00019432,3]
[345433192,1734255033720,-500.0,0.00019432,3]
[345433193,1734255033730,-500.0,0.00019432,3]
[345433194,1734255033739,-500.0,0.00019432,3]
[345433195,1734255033749,-283.81157562,0.00019432,3]
[345433196,1734255033976,-216.18842438,0.00019432,3]
[345433197,1734255033987,-308.83401164,0.00019432,3]
[345433198,1734255034005,-191.16598836,0.00019432,3]
[345433199,1734255034018,-500.0,0.00019432,3]
[345433200,1734255034028,-500.0,0.00019432,3]
[345433201,1734255034037,-500.0,0.00019432,3]
[345433202,1734255034048,-500.0,0.00019432,3]
[345433203,1734255034059,-45.94388429,0.00019432,3]
[345433205,1734255038068,-500.0,0.00019431,3]
[345433206,1734255038078,-500.0,0.00019431,3]
[345433207,1734255038087,-454.05611571,0.00019432,3]
[345433208,1734255038096,-500.0,0.00019432,3]
[345433209,1734255038105,-500.0,0.00019432,3]
[345433210,1734255038114,-500.0,0.00019432,3]
[345433211,1734255038123,-500.0,0.00019432,3]
[345433212,1734255038132,-500.0,0.00019432,3]
[345433213,1734255038141,-500.0,0.00019432,3]
[345433214,1734255038151,-500.0,0.00019432,3]
[345433215,1734255038161,-500.0,0.00019432,3]
[345433216,1734255038171,-500.0,0.00019432,3]
[345433217,1734255038181,-500.0,0.00019432,3]
[345433218,1734255038191,-500.0,0.00019432,3]
[345433219,1734255038200,-510.29,0.00019432,3]
[345433220,1734255038209,-552.38,0.00019432,3]
[345433221,1734255038218,-500.0,0.00019432,3]
[345433222,1734255038227,-944.78,0.00019432,3]
[345433223,1734255038237,-577.8432245,0.00019432,3]
[345433224,1734255038246,-500.0,0.00019432,3]
[345433225,1734255038256,-500.0,0.00019432,3]
[345433226,1734255038265,-500.0,0.00019432,3]
[345433227,1734255038275,-334.47848374,0.00019432,3]
[345433228,1734255038287,-500.0,0.00019432,3]
[345433229,1734255038312,-1962.43151626,0.00019432,3]
[345433230,1734255038321,-500.0,0.00019432,3]
[345433231,1734255038330,-505.66,0.00019432,3]
[345433232,1734255038340,-500.0,0.00019432,3]
[345433233,1734255038349,-639.79,0.00019432,3]
[345433234,1734255038359,-500.0,0.00019432,3]
[345433235,1734255038368,-617.28466729,0.00019432,3]
[345433236,1734255038377,-913.0,0.00019432,3]
[345433237,1734255038387,-500.0,0.00019432,3]
[345433238,1734255038395,-500.0,0.00019432,3]
[345433239,1734255038404,-500.0,0.00019432,3]
[345433240,1734255038414,-500.0,0.00019432,3]
[345433241,1734255038423,-500.0,0.00019432,3]
[345433242,1734255038432,-500.0,0.00019432,3]
[345433243,1734255038441,-1382.72,0.00019432,3]
[345433244,1734255038450,-500.0,0.00019432,3]
[345433245,1734255038459,-595.67,0.00019432,3]
[345433246,1734255038468,-500.0,0.00019432,3]
[345433247,1734255038477,-493.06495457,0.00019432,3]
[345433248,1734255038486,-500.0,0.00019432,3]
[345433249,1734255038495,-500.0,0.00019432,3]
[345433250,1734255038505,-770.87,0.00019432,3]
[345433251,1734255038514,-500.0,0.00019432,3]
[345433252,1734255038524,-500.0,0.00019432,3]
[345433253,1734255038534,-500.0,0.00019432,3]
[345433254,1734255038544,-500.0,0.00019432,3]
[345433255,1734255038553,-500.0,0.00019432,3]
[345433256,1734255038563,-1558.77,0.00019432,3]
[345433258,1734255038572,-500.0,0.00019432,3]
[345433260,1734255038581,-1028.64,0.00019432,3]
[345433262,1734255038591,-500.0,0.00019432,3]
[345433264,1734255038600,-1106.78,0.00019432,3]
[345433266,1734255038609,-500.0,0.00019432,3]
[345433268,1734255038619,-3178.56,0.00019432,3]
[345433270,1734255038628,-2321.1,0.00019432,3]
[345433272,1734255038637,-500.0,0.00019432,3]
[345433274,1734255038646,-500.0,0.00019432,3]
[345433276,1734255038656,-500.0,0.00019432,3]
[345433278,1734255038666,-500.0,0.00019432,3]
[345433280,1734255038675,-500.0,0.00019432,3]
[345433282,1734255038684,-508.11,0.00019432,3]
[345433283,1734255038693,-1128.76,0.00019432,3]
[345433285,1734255038702,-533.07,0.00019432,3]
[345433287,1734255038711,-500.0,0.00019432,3]
[345433289,1734255038720,-550.38,0.00019432,3]
[345433291,1734255038729,-963.23,0.00019432,3]
[345433293,1734255038738,-212.10886188,0.00019432,3]
[345433450,1734255040167,-1000.0,0.00018933,2]
[345433452,1734255040178,-500.0,0.00019431,3]
[345433454,1734255040187,-287.89113812,0.00019432,3]
[345433456,1734255040197,-500.0,0.00019432,3]
[345433458,1734255040205,-500.0,0.00019432,3]
[345433460,1734255040215,-340.18080015,0.00019432,3]
[345433462,1734255040226,-1662.73919985,0.00019432,3]
[345433464,1734255040236,-585.98,0.00019432,3]
[345433466,1734255040245,-500.0,0.00019432,3]
[345433468,1734255040255,-500.0,0.00019432,3]
[345433470,1734255040264,-601.66,0.00019432,3]
[345433472,1734255040274,-688.73,0.00019432,3]
[345433474,1734255040284,-500.0,0.00019432,3]
[345433476,1734255040294,-558.99,0.00019432,3]
[345433478,1734255040303,-500.0,0.00019432,3]
[345433480,1734255040313,-500.0,0.00019432,3]
[345433482,1734255040322,-1308.51,0.00019432,3]
[345433483,1734255040331,-665.13,0.00019432,3]
[345433486,1734255040341,-500.0,0.00019432,3]
[345433487,1734255040351,-500.0,0.00019432,3]
[345433490,1734255040360,-1482.31,0.00019432,3]
[345433491,1734255040369,-500.0,0.00019432,3]
[345433494,1734255040379,-159.128542,0.00019432,3]
[345433495,1734255040389,-191.058711,0.00019432,3]
[345433498,1734255040398,-500.0,0.00019432,3]
[345433499,1734255040408,-500.0,0.00019432,3]
[345433501,1734255040417,-620.56,0.00019432,3]
[345433503,1734255040427,-910.18,0.00019432,3]
[345433505,1734255040436,-1562.81,0.00019432,3]
[345433507,1734255040446,-500.0,0.00019432,3]
[345433508,1734255040456,-500.0,0.00019432,3]
[345433509,1734255040465,-500.0,0.00019432,3]
[345433510,1734255040475,-500.0,0.00019432,3]
[345433511,1734255040484,-500.0,0.00019432,3]
[345433512,1734255040494,-500.0,0.00019432,3]
[345433513,1734255040503,-601.08,0.00019432,3]
[345433514,1734255040512,-500.0,0.00019433,3]
[345433515,1734255040521,-500.0,0.00019433,3]
[345433516,1734255040530,-500.0,0.00019433,3]
[345433518,1734255040539,-500.0,0.00019433,3]
[345433520,1734255040549,-500.0,0.00019433,3]
[345433522,1734255040558,-500.0,0.00019433,3]
[345433524,1734255040567,-500.0,0.00019433,3]
[345433526,1734255040576,-500.0,0.00019433,3]
[345433528,1734255040586,-500.0,0.00019433,3]
[345433530,1734255040596,-500.0,0.00019433,3]
[345433532,1734255040605,-500.0,0.00019433,3]
[345433534,1734255040614,-500.0,0.00019433,3]
[345433536,1734255040623,-504.84,0.00019433,3]
[345433538,1734255040633,-500.0,0.00019433,3]
[345433540,1734255040642,-500.0,0.00019433,3]
[345433542,1734255040651,-610.82,0.00019433,3]
[345433544,1734255040661,-500.0,0.00019433,3]
[345433546,1734255040670,-599.01949849,0.00019433,3]
[345433548,1734255040679,-500.0,0.00019433,3]
[345433550,1734255040688,-500.0,0.00019433,3]
[345433552,1734255040698,-500.0,0.00019433,3]
[345433554,1734255040707,-500.0,0.00019433,3]
[345433556,1734255040717,-500.0,0.00019433,3]
[345433558,1734255040726,-500.0,0.00019433,3]
[345433560,1734255040735,-500.0,0.00019433,3]
[345433562,1734255040743,-500.0,0.00019433,3]
[345433564,1734255040752,-500.0,0.00019433,3]
[345433566,1734255040762,-500.0,0.00019433,3]
[345433568,1734255040772,-500.0,0.00019433,3]
[345433570,1734255040782,-500.0,0.00019433,3]
[345433572,1734255040791,-500.0,0.00019433,3]
[345433574,1734255040800,-500.0,0.00019433,3]
[345433576,1734255040810,-500.0,0.00019433,3]
[345433578,1734255040819,-500.0,0.00019433,3]
[345433580,1734255040828,-500.0,0.00019433,3]
[345433582,1734255040837,-500.0,0.00019433,3]
[345433584,1734255040846,-140.06034023,0.00019433,3]
[345433587,1734255040871,-625.42636932,0.00019043,2]
[345433589,1734255040883,-465.65437272,0.00019043,2]
[345433591,1734255040892,-324.22562728,0.00019433,3]
[345433594,1734255040903,-35.71403249,0.00019433,3]
[345433596,1734255040913,-500.0,0.00019433,3]
[345433598,1734255040922,-500.0,0.00019433,3]
[345433600,1734255040932,-500.0,0.00019433,3]
[345433602,1734255040941,-500.0,0.00019433,3]
[345433604,1734255040950,-500.0,0.00019433,3]
[345433605,1734255040960,-500.0,0.00019433,3]
[345433607,1734255040969,-204.29132351,0.00019433,3]
[345433832,1734255043210,-500.0,0.00019431,3]
[345433834,1734255043221,-500.0,0.00019432,3]
[345433836,1734255043230,-295.70867649,0.00019433,3]
[345433838,1734255043239,-500.0,0.00019433,3]
[345433840,1734255043249,-596.75,0.00019433,3]
[345433842,1734255043258,-500.0,0.00019433,3]
[345433843,1734255043267,-500.0,0.00019433,3]
[345433846,1734255043280,-500.0,0.00019433,3]
[345433847,1734255043290,-500.0,0.00019433,3]
[345433849,1734255043300,-500.0,0.00019433,3]
[345433851,1734255043310,-500.0,0.00019433,3]
[345433853,1734255043319,-500.0,0.00019433,3]
[345433855,1734255043328,-500.0,0.00019433,3]
[345433857,1734255043337,-686.47,0.00019433,3]
[345433859,1734255043347,-500.0,0.00019433,3]
[345433861,1734255043356,-500.0,0.00019433,3]
[345433863,1734255043366,-500.0,0.00019433,3]
[345433865,1734255043375,-500.0,0.00019433,3]
[345433867,1734255043385,-500.0,0.00019433,3]
[345433869,1734255043394,-1315.42,0.00019433,3]
[345433871,1734255043403,-500.0,0.00019433,3]
[345433873,1734255043413,-500.0,0.00019433,3]
[345433875,1734255043423,-645.68,0.00019433,3]
[345433877,1734255043432,-500.0,0.00019433,3]
[345433879,1734255043442,-454.21792351,0.00019433,3]
[345433885,1734255043486,-91.85207649,0.00019433,3]
[345433886,1734255043495,-341.81410583,0.00019433,3]
[345433907,1734255043687,-343.76589417,0.00019433,3]
[345433909,1734255043697,-87.89187362,0.00019433,3]
[345433911,1734255043708,-412.10812638,0.00019433,3]
[345433913,1734255043718,-87.89187362,0.00019433,3]
[345433941,1734255046262,-413.14,0.00019431,3]
[345433942,1734255046274,-500.0,0.00019432,3]
[345433943,1734255046285,-792.32812638,0.00019433,3]
[345433944,1734255046295,-803.28812362,0.00019433,3]
[345433945,1734255046306,-492.19187638,0.00019433,3]
[345433946,1734255046315,-500.0,0.00019433,3]
[345433947,1734255046324,-650.97,0.00019433,3]
[345433948,1734255046334,-500.0,0.00019433,3]
[345433949,1734255046343,-500.0,0.00019433,3]
[345433950,1734255046352,-706.71,0.00019433,3]
[345433951,1734255046361,-500.0,0.00019433,3]
[345433952,1734255046370,-500.0,0.00019433,3]
[345433953,1734255046379,-500.0,0.00019433,3]
[345433954,1734255046389,-782.38,0.00019433,3]
[345433955,1734255046398,-405.13360282,0.00019433,3]
[345433956,1734255046408,-3108.45,0.00019433,3]
[345433957,1734255046417,-500.0,0.00019433,3]
[345433958,1734255046426,-500.0,0.00019433,3]
[345433959,1734255046435,-500.0,0.00019433,3]
[345433960,1734255046444,-500.0,0.00019433,3]
[345433961,1734255046453,-500.0,0.00019433,3]
[345433962,1734255046463,-500.0,0.00019433,3]
[345433963,1734255046473,-500.0,0.00019433,3]
[345433964,1734255046482,-1000.0,0.00019433,3]
[345433965,1734255046492,-500.0,0.00019433,3]
[345433966,1734255046501,-161.77,0.00019433,3]
[345433967,1734255046511,-417.0,0.00019433,3]
[345433968,1734255046524,-500.0,0.00019433,3]
[345433969,1734255046533,-500.0,0.00019433,3]
[345433970,1734255046542,-533.56,0.00019433,3]
[345433971,1734255046552,-500.0,0.00019433,3]
[345433972,1734255046561,-500.0,0.00019433,3]
[345433973,1734255046570,-500.0,0.00019433,3]
[345433974,1734255046580,-500.0,0.00019433,3]
[345433975,1734255046589,-216.8345208,0.00019433,3]
[345433976,1734255046601,-283.1654792,0.00019433,3]
[345433977,1734255046610,-500.0,0.00019433,3]
[345433978,1734255046619,-372.35864891,0.00019433,3]
[345433979,1734255046634,-127.64135109,0.00019433,3]
[345433980,1734255046644,-500.0,0.00019433,3]
[345433981,1734255046653,-500.0,0.00019434,3]
[345433982,1734255046663,-500.0,0.00019434,3]
[345433983,1734255046673,-500.0,0.00019434,3]
[345433984,1734255046683,-500.0,0.00019434,3]
[345433985,1734255046692,-500.0,0.00019435,3]
[345433986,1734255046701,-500.0,0.00019435,3]
[345433987,1734255046710,-500.0,0.00019435,3]
[345433988,1734255046719,-418.84478771,0.00019435,3]
[345433989,1734255046729,-500.0,0.00019435,3]
[345433990,1734255046738,-500.0,0.00019435,3]
[345433991,1734255046748,-500.0,0.00019435,3]
[345433992,1734255046757,-472.21731623,0.00019455,2]
[345433993,1734255046766,-500.0,0.00019499,3]
[345433994,1734255046779,-500.0,0.00019499,3]
[345433995,1734255046788,-500.0,0.00019499,3]
[345433996,1734255046798,-500.0,0.00019499,3]
[345433997,1734255046807,-500.0,0.00019499,3]
[345433998,1734255046816,-500.0,0.00019499,3]
[345433999,1734255046825,-500.0,0.00019499,3]
[345434000,1734255046834,-500.0,0.00019499,3]
[345434001,1734255046843,-500.0,0.00019499,3]
[345434002,1734255046852,-500.0,0.00019499,3]
[345434003,1734255046862,-500.0,0.00019499,3]
[345434004,1734255046871,-500.0,0.00019499,3]
[345434005,1734255046880,-500.0,0.00019499,3]
[345434006,1734255046889,-500.0,0.00019499,3]
[345434007,1734255046898,-500.0,0.00019499,3]
[345434008,1734255046907,-500.0,0.00019499,3]
[345434009,1734255046917,-500.0,0.00019499,3]
[345434010,1734255046926,-500.0,0.00019499,3]
[345434011,1734255046935,-500.0,0.00019499,3]
[345434012,1734255046945,-500.0,0.00019499,3]
[345434013,1734255046954,-500.0,0.00019499,3]
[345434014,1734255046964,-500.0,0.00019499,3]
[345434015,1734255046973,-500.0,0.00019499,3]
[345434016,1734255046983,-500.0,0.00019499,3]
[345434017,1734255046996,-500.0,0.00019499,3]
[345434018,1734255047006,-285.39802732,0.00019499,3]
[345434019,1734255047015,-500.0,0.00019499,3]
[345434020,1734255047027,-500.0,0.00019499,3]
[345434021,1734255047038,-500.0,0.00019499,3]
[345434022,1734255047047,-500.0,0.00019499,3]
[345434023,1734255047058,-500.0,0.00019499,3]
[345434024,1734255047072,-500.0,0.00019499,3]
[345434025,1734255047082,-500.99519883,0.00019499,3]
[345434026,1734255047092,-500.0,0.00019499,3]
[345434027,1734255047101,-500.0,0.00019499,3]
[345434028,1734255047111,-500.0,0.00019499,3]
[345434029,1734255047122,-500.0,0.00019499,3]
[345434030,1734255047133,-583.99,0.00019499,3]
[345434031,1734255047143,-500.0,0.00019499,3]
[345434032,1734255047152,-500.0,0.00019499,3]
[345434033,1734255047161,-609.22,0.00019499,3]
[345434034,1734255047171,-500.0,0.00019499,3]
[345434035,1734255047180,-500.0,0.00019499,3]
[345434036,1734255047189,-500.0,0.00019499,3]
[345434037,1734255047199,-500.0,0.00019499,3]
[345434038,1734255047208,-222.73024728,0.00019499,3]
[345434039,1734255047218,-500.0,0.00019499,3]
[345434040,1734255047227,-572.75067752,0.00019499,3]
[345434041,1734255047236,-500.0,0.00019499,3]
[345434042,1734255047245,-500.0,0.00019499,3]
[345434043,1734255047254,-500.0,0.00019499,3]
[345434044,1734255047263,-500.0,0.00019499,3]
[345434045,1734255047274,-500.0,0.00019499,3]
[345434046,1734255047283,-500.0,0.00019499,3]
[345434047,1734255047293,-500.0,0.00019499,3]
[345434048,1734255047302,-500.0,0.00019499,3]
[345434049,1734255047312,-500.0,0.00019499,3]
[345434050,1734255047321,-500.0,0.00019499,3]
[345434051,1734255047330,-500.0,0.00019499,3]
[345434052,1734255047339,-500.0,0.00019499,3]
[345434053,1734255047349,-500.0,0.00019499,3]
[345434054,1734255047358,-500.0,0.00019499,3]
[345434055,1734255047367,-500.0,0.00019499,3]
[345434056,1734255047376,-500.0,0.00019499,3]
[345434057,1734255047385,-500.0,0.00019499,3]
[345434058,1734255047395,-500.0,0.00019499,3]
[345434059,1734255047404,-500.0,0.00019499,3]
[345434060,1734255047413,-500.0,0.00019499,3]
[345434061,1734255047422,-500.0,0.00019499,3]
[345434062,1734255047432,-500.0,0.00019499,3]
[345434063,1734255047442,-435.1373008,0.00019499,3]
[345434064,1734255047451,-393.95849677,0.00019499,3]
[345434065,1734255047460,-500.0,0.00019499,3]
[345434066,1734255047470,-500.0,0.00019499,3]
[345434067,1734255047479,-500.0,0.00019499,3]
[345434068,1734255047488,-500.0,0.00019499,3]
[345434069,1734255047497,-500.0,0.00019499,3]
[345434070,1734255047506,-230.49875075,0.00019499,3]
[345434071,1734255047516,-500.0,0.00019499,3]
[345434072,1734255047527,-500.0,0.00019499,3]
[345434073,1734255047537,-500.0,0.00019499,3]
[345434074,1734255047546,-500.0,0.00019499,3]
[345434075,1734255047555,-500.0,0.00019499,3]
[345434076,1734255047567,-500.0,0.00019499,3]
[345434077,1734255047575,-282.05299982,0.00019499,3]
[345434078,1734255047586,-569.03223029,0.00019499,3]
[345434079,1734255047596,-500.0,0.00019499,3]
[345434080,1734255047605,-500.0,0.00019499,3]
[345434081,1734255047614,-500.0,0.00019499,3]
[345434082,1734255047623,-500.0,0.00019499,3]
[345434083,1734255047632,-255.53264059,0.00019499,3]
[345434087,1734255152014,226.84,0.00010137,2]
[345434088,1734255239355,18358.61465301,0.00015,2]
[345434095,1734255419535,450.0,0.00013,2]
[345434096,1734255421064,500.0,0.00015,2]
[345434097,1734255576581,150.73,0.00018794,30]
[345434098,1734256132186,3183.3815685,0.0002,120]
[345434100,1734256146238,322.54,0.00010137,2]
[345434103,1734256232380,-588.64675613,0.00016813,2]
[345434104,1734256232439,-1000.0,0.00016813,2]
[345434105,1734256232453,-911.35324387,0.00016813,2]
[345434106,1734256232463,-226.84,0.00016813,2]
[345434107,1734256232474,-322.54,0.00016813,2]
[345434108,1734256232486,-786.96,0.00016822,2]
[345434109,1734256232497,-550.0,0.00017,2]
[345434110,1734256232507,-500.0,0.00017568,2]
[345434111,1734256232517,-900.0,0.00017568,2]
[345434112,1734256232527,-295.68,0.00018325,2]
[345434113,1734256232538,-1000.0,0.00018473,2]
[345434114,1734256232548,-30.77907913,0.00018504,2]
[345434115,1734256232579,-269.22092087,0.00018504,2]
[345434116,1734256232588,-44.49907863,0.00018505,2]
[345434117,1734256232601,-23855.50092137,0.00018505,2]
[345434118,1734256232611,-395.34,0.00018594,2]
[345434119,1734256232622,-601.50345476,0.00018664,2]
[345434120,1734256232633,-900.0,0.00018664,2]
[345434121,1734256232642,-150.0,0.00018712,2]
[345434122,1734256232651,-250.0,0.0001874,2]
[345434123,1734256232660,-168.62,0.00018785,2]
[345434124,1734256232669,-163.11,0.00018794,2]
[345434125,1734256232679,-1286.04,0.00018815,2]
[345434126,1734256232688,-229.93,0.00019,2]
[345434145,1734256232952,-600.0,0.00019,2]
[345434149,1734256232973,-357.252,0.00019,2]
[345434151,1734256232987,-150.0,0.00019078,2]
[345434153,1734256232997,-1951.1,0.00019078,2]
[345434154,1734256233006,-786.96,0.00019086,2]
[345434155,1734256233015,-4000.0,0.00019178,2]
[345434156,1734256233024,-2017.008,0.0001926,2]
[345434157,1734256233033,-192.55132843,0.00019331,3]
[345434158,1734256233042,-1000.0,0.00019353,2]
[345434159,1734256233051,-500.0,0.0001943,3]
[345434160,1734256233060,-500.0,0.0001943,3]
[345434161,1734256233068,-500.0,0.0001943,3]
[345434162,1734256233077,-500.0,0.0001943,3]
[345434163,1734256233086,-500.0,0.0001943,3]
[345434164,1734256233095,-500.0,0.0001943,3]
[345434165,1734256233104,-500.0,0.0001943,3]
[345434166,1734256233113,-500.0,0.0001943,3]
[345434167,1734256233122,-500.0,0.0001943,3]
[345434169,1734256233131,-1387.6,0.0001943,3]
[345434171,1734256233140,-528.09,0.0001943,3]
[345434173,1734256233150,-500.0,0.0001943,3]
[345434175,1734256233159,-500.0,0.0001943,3]
[345434177,1734256233169,-500.0,0.0001943,3]
[345434179,1734256233178,-500.0,0.0001943,3]
[345434181,1734256233188,-500.0,0.0001943,3]
[345434183,1734256233198,-500.0,0.0001943,3]
[345434185,1734256233207,-663.15,0.0001943,3]
[345434187,1734256233216,-500.0,0.0001943,3]
[345434189,1734256233225,-955.46490446,0.0001943,3]
[345434192,1734256233237,-226.81509554,0.0001943,3]
[345434194,1734256233247,-74.18490346,0.0001943,3]
[345434196,1734256233263,-425.81509654,0.0001943,3]
[345434198,1734256233272,-317.43667102,0.0001943,3]
[345434200,1734256233283,-182.56332898,0.0001943,3]
[345434202,1734256233292,-184.73598982,0.0001943,3]
[345434204,1734256233304,-315.26401018,0.0001943,3]
[345434206,1734256233313,-500.0,0.0001943,3]
[345434209,1734256233323,-500.0,0.0001943,3]
[345434211,1734256233332,-500.0,0.0001943,3]
[345434212,1734256233341,-535.7,0.0001943,3]
[345434214,1734256233350,-666.66,0.0001943,3]
[345434216,1734256233360,-500.0,0.0001943,3]
[345434218,1734256233369,-520.14,0.0001943,3]
[345434219,1734256233381,-500.0,0.0001943,3]
[345434220,1734256233391,-500.0,0.0001943,3]
[345434221,1734256233401,-1622.69,0.0001943,3]
[345434222,1734256233411,-159.128542,0.0001943,3]
[345434223,1734256233420,-151.48049,0.0001943,3]
[345434224,1734256233430,-500.0,0.0001943,3]
[345434225,1734256233440,-500.0,0.0001943,3]
[345434226,1734256233449,-500.0,0.0001943,3]
[345434227,1734256233458,-500.0,0.0001943,3]
[345434228,1734256233468,-500.0,0.00019431,3]
[345434229,1734256233478,-500.0,0.00019431,3]
[345434230,1734256233488,-500.0,0.00019431,3]
[345434231,1734256233498,-500.0,0.00019431,3]
[345434232,1734256233507,-530.05311761,0.00019431,3]
[345434233,1734256233517,-500.0,0.00019431,3]
[345434234,1734256233526,-500.0,0.00019431,3]
[345434235,1734256233535,-500.0,0.00019431,3]
[345434236,1734256233545,-500.0,0.00019431,3]
[345434237,1734256233556,-500.0,0.00019431,3]
[345434238,1734256233565,-500.0,0.00019431,3]
[345434239,1734256233576,-500.0,0.00019431,3]
[345434240,1734256233587,-280.16,0.00019431,3]
[345434241,1734256233596,-602.59454025,0.00019431,3]
[345434242,1734256233606,-500.0,0.00019431,3]
[345434243,1734256233615,-165.43,0.00019431,3]
[345434244,1734256233624,-500.0,0.00019431,3]
[345434245,1734256233634,-500.0,0.00019431,3]
[345434246,1734256233643,-500.0,0.00019431,3]
[345434247,1734256233652,-304.73309323,0.00019431,3]
[345434248,1734256233662,-500.0,0.00019431,3]
[345434249,1734256233671,-500.0,0.00019431,3]
[345434250,1734256233680,-500.0,0.00019431,3]
[345434251,1734256233689,-500.0,0.00019431,3]
[345434252,1734256233698,-500.0,0.00019431,3]
[345434253,1734256233707,-352.83443894,0.00019431,3]